bitfinex/quotes_BTCUSD_20220105
["timestamp","ask_amount","ask_price","bid_price","bid_amount"]
[1641416163340,2.7007331,44001.0,44000.0,0.0333]
[1641416163735,2.7007331,44001.0,43991.0,0.004]
[1641416163736,0.00120348,43992.0,43991.0,0.004]
[1641416163937,3.80402348,43992.0,43991.0,0.004]
[1641416164135,2.60902348,43992.0,43991.0,0.004]
[1641416164536,2.85072348,43992.0,43983.0,0.00011]
[1641416164738,2.85072348,43992.0,43977.0,0.00011]
[1641416164739,0.00123992,43985.0,43977.0,0.00011]
[1641416164942,0.29782,43981.0,43977.0,0.00011]
[1641416165239,0.86962364,43980.0,43977.0,0.00011]
[1641416165437,1.53452,43980.0,43977.0,0.00011]
[1641416165636,0.29782,43980.0,43977.0,0.00011]
[1641416165838,0.056859,43990.0,43979.0,0.369275]
[1641416166036,0.012,43992.0,43979.0,0.00011]
[1641416166237,0.0537,43992.0,43979.0,0.00011]
[1641416166438,0.29782,43991.0,43980.0,0.31118867]
[1641416166635,0.29782,43991.0,43979.0,0.00011]
[1641416166636,0.0417,43992.0,43979.0,0.00011]
[1641416167081,0.056858,43991.0,43979.0,0.00011]
[1641416167281,0.0122369,43992.0,43979.0,0.00011]
[1641416167580,0.52490227,43985.0,43979.0,0.00011]
[1641416167785,0.1,43980.0,43972.0,0.00028907]
[1641416167982,0.1,43980.0,43970.0,0.00022]
[1641416167983,2.31,43974.0,43970.0,0.00022]
[1641416168182,1.49282,43971.0,43970.0,0.00022]
[1641416168382,1.53452,43971.0,43970.0,0.00022]
[1641416168689,0.50716124,43961.0,43952.0,0.00033]
[1641416168883,0.33952,43960.0,43958.0,0.00022]
[1641416169087,0.056894,43964.0,43958.0,0.00022]
[1641416169279,0.046,43961.0,43958.0,0.00022]
[1641416169486,0.00125662,43959.0,43958.0,0.00022]
[1641416169681,0.29907662,43959.0,43958.0,0.00022]
[1641416170080,0.00125662,43959.0,43958.0,0.00022]
[1641416170281,0.29782,43959.0,43958.0,0.00022]
[1641416170938,0.09144906,43966.0,43960.0,0.25233328]
[1641416171242,0.47451079,43963.0,43959.0,0.29285764]
[1641416171440,0.2499,43964.0,43959.0,0.29285764]
[1641416171842,0.2499,43964.0,43960.0,0.369165]
[1641416172045,0.2499,43964.0,43961.0,0.26350182]
[1641416172239,0.09018638,43966.0,43961.0,0.26350182]
[1641416172440,0.09018638,43966.0,43962.0,0.59481545]
[1641416172637,0.09018638,43966.0,43963.0,0.4119261]
[1641416172837,0.09018638,43966.0,43964.0,0.369165]
[1641416173039,0.09018638,43966.0,43965.0,0.369165]
[1641416173237,0.12918638,43966.0,43965.0,0.369165]
[1641416173438,0.6699,43978.0,43965.0,2.76437486]
[1641416173640,0.00123783,43983.0,43965.0,2.76437486]
[1641416173943,0.42,43987.0,43971.0,0.00121488]
[1641416174142,0.79750536,43981.0,43965.0,0.24520986]
[1641416174386,0.29782,43980.0,43964.0,0.00017148]
[1641416174590,0.22044769,43979.0,43964.0,0.00017148]
[1641416174790,0.29782,43978.0,43964.0,0.00017148]
[1641416174985,0.31214769,43979.0,43964.0,0.00017148]
[1641416174986,0.48550218,43977.0,43964.0,0.00017148]
[1641416175187,0.05689,43966.0,43964.0,0.00117148]
[1641416175388,0.70782,43965.0,43964.0,0.00117148]
[1641416175687,0.0417,43971.0,43964.0,0.00617147]
[1641416175889,0.29782,43970.0,43964.0,0.00117148]
[1641416176089,0.00129631,43972.0,43969.0,0.00499999]
[1641416176288,0.24908493,43979.0,43969.0,0.00499999]
[1641416176289,0.005,43979.0,43969.0,0.00499999]
[1641416176489,0.29782,43978.0,43972.0,0.00499999]
[1641416176690,0.29782,43978.0,43964.0,0.00017148]
[1641416176691,0.38457832,43977.0,43964.0,0.00017148]
[1641416176989,0.056893,43972.0,43964.0,0.00017148]
[1641416177197,0.29782,43968.0,43964.0,0.00417148]
[1641416177389,2.60782,43965.0,43964.0,0.00417148]
[1641416177590,0.99,43964.0,43959.0,0.00017898]
[1641416177789,0.33952,43963.0,43959.0,0.00017898]
[1641416178041,0.00129483,43960.0,43959.0,0.00017898]
[1641416178432,2.65081483,43960.0,43959.0,0.00017898]
[1641416178631,1.2012284,43959.0,43958.0,0.00022]
[1641416178831,1.5407484,43959.0,43958.0,0.00022]
[1641416179034,1.5407484,43959.0,43950.0,0.00033]
[1641416179035,1.3379284,43959.0,43950.0,0.00033]
[1641416179234,1.3379284,43959.0,43942.0,0.00521999]
[1641416179235,0.00120442,43954.0,43942.0,0.00521999]
[1641416179432,0.00120442,43954.0,43942.0,0.00022]
[1641416179433,0.65604122,43947.0,43942.0,0.00022]
[1641416179634,0.33952,43947.0,43942.0,0.00022]
[1641416179835,0.0417,43947.0,43946.0,0.00510999]
[1641416180234,0.01348539,43953.0,43946.0,0.00510999]
[1641416180432,0.01348539,43953.0,43952.0,0.25887197]
[1641416180634,0.8616,43961.0,43953.0,2.31]
[1641416180635,0.57,43961.0,43953.0,2.31]
[1641416180834,1.23530725,43972.0,43960.0,0.00499999]
[1641416181037,1.23530725,43972.0,43964.0,0.97620143]
[1641416181038,0.2499,43966.0,43964.0,0.97620143]
[1641416181235,0.2499,43966.0,43964.0,0.00620143]
[1641416181438,0.2499,43966.0,43965.0,2.06253928]
[1641416181780,0.94843614,43969.0,43965.0,0.67136462]
[1641416181978,0.94843614,43969.0,43968.0,0.00499999]
[1641416182181,0.00120486,43979.0,43968.0,0.00499999]
[1641416182386,0.54052933,43977.0,43974.0,0.00499999]
[1641416182681,0.00120712,43975.0,43967.0,0.49575895]
[1641416182980,1.31209214,43984.0,43955.0,0.2219194]
[1641416182981,0.00124538,43969.0,43955.0,0.2219194]
[1641416183183,0.00123249,43964.0,43955.0,0.00499999]
[1641416183383,1.79,43962.0,43946.0,0.00010999]
[1641416183583,0.00129834,43958.0,43946.0,0.00010999]
[1641416183883,0.00129834,43958.0,43950.0,0.26769554]
[1641416183884,0.29782,43957.0,43950.0,0.26769554]
[1641416184082,0.0417,43962.0,43950.0,0.26769554]
[1641416184083,0.1138,43962.0,43950.0,0.26769554]
[1641416184282,0.2219194,43966.0,43950.0,0.26769554]
[1641416184683,0.113807,43964.0,43950.0,0.26769554]
[1641416184888,0.113807,43964.0,43948.0,0.64495871]
[1641416184889,0.00129361,43958.0,43948.0,0.64495871]
[1641416185086,0.056904,43955.0,43947.0,0.25705135]
[1641416185755,0.056904,43955.0,43948.0,0.1]
[1641416185955,0.369707,43964.0,43947.0,0.25705135]
[1641416185956,0.2559,43964.0,43954.0,0.27148832]
[1641416186155,0.2559,43964.0,43960.0,0.54084761]
[1641416186156,0.006,43964.0,43960.0,0.54084761]
[1641416186354,0.00121188,43961.0,43954.0,0.27148832]
[1641416186554,0.00121188,43961.0,43958.0,0.45129261]
[1641416186755,0.2499,43971.0,43959.0,0.369165]
[1641416186955,0.056888,43972.0,43961.0,0.27844297]
[1641416187156,0.006,43971.0,43959.0,0.011]
[1641416187360,0.29782,43970.0,43965.0,0.60749637]
[1641416187562,0.29782,43970.0,43959.0,0.011]
[1641416187563,1.195,43969.0,43959.0,0.011]
[1641416187759,0.006,43971.0,43959.0,0.011]
[1641416187760,0.29782,43968.0,43959.0,0.27083685]
[1641416188062,0.006,43971.0,43966.0,0.27608734]
[1641416188264,0.006,43971.0,43968.0,0.1]
[1641416188460,0.00120325,43983.0,43969.0,0.369165]
[1641416188764,0.00120325,43983.0,43966.0,0.27608734]
[1641416188765,0.50882002,43976.0,43966.0,0.53686611]
[1641416188961,0.24812145,43975.0,43966.0,0.53686611]
[1641416189161,0.354702,43974.0,43949.0,0.9149]
[1641416189380,0.354702,43974.0,43966.0,0.016]
[1641416189381,0.056882,43974.0,43966.0,0.016]
[1641416189582,0.29782,43973.0,43970.0,0.28132539]
[1641416189782,0.006,43976.0,43971.0,0.31512701]
[1641416190090,0.006,43976.0,43975.0,2.3]
[1641416190281,0.006,43976.0,43975.0,1.20408978]
[1641416190482,1.06699066,43988.0,43975.0,1.20408978]
[1641416190684,0.29782,43987.0,43975.0,0.83492478]
[1641416190883,1.06699066,43988.0,43986.0,0.1]
[1641416191090,1.06699066,43988.0,43983.0,0.22420704]
[1641416191286,0.004,43987.0,43986.0,1.5493361]
[1641416191487,0.004,43987.0,43986.0,1.3985011]
[1641416191704,0.004,43987.0,43985.0,0.00129403]
[1641416191883,0.004,43987.0,43975.0,0.019]
[1641416191884,0.29782,43986.0,43975.0,0.019]
[1641416192084,0.22420704,43985.0,43975.0,0.019]
[1641416192287,0.39781999,43981.0,43975.0,0.019]
[1641416192482,0.39781999,43981.0,43959.0,0.00126317]
[1641416192483,2.366881,43976.0,43959.0,0.00126317]
[1641416192688,2.366881,43976.0,43964.0,0.85907565]
[1641416192689,0.0417,43975.0,43964.0,0.85907565]
[1641416192883,0.26590704,43975.0,43964.0,0.50104685]
[1641416193127,0.26590704,43975.0,43964.0,0.24212712]
[1641416193329,0.26590704,43975.0,43964.0,0.24912712]
[1641416193330,1.195,43973.0,43964.0,0.24912712]
[1641416193525,2.08689122,43966.0,43964.0,0.007]
[1641416193730,2.08689122,43966.0,43948.0,0.11377512]
[1641416193731,0.00124755,43954.0,43948.0,0.11377512]
[1641416193927,0.00124755,43954.0,43945.0,0.00033]
[1641416193928,0.33952,43953.0,43945.0,0.00033]
[1641416194426,0.0417,43953.0,43951.0,0.32988211]
[1641416194628,0.056906,43952.0,43945.0,0.00033]
[1641416194828,0.0417,43951.0,43945.0,0.00033]
[1641416195234,0.5417,43951.0,43950.0,0.64575348]
[1641416195428,0.5417,43951.0,43946.0,0.44178816]
[1641416195928,2.17782,43950.0,43949.0,0.23918485]
[1641416196130,0.29782,43950.0,43949.0,0.23918485]
[1641416196332,1.19,43950.0,43949.0,0.8036064]
[1641416196530,0.0417,43951.0,43949.0,0.8036064]
[1641416196792,0.74092478,43958.0,43950.0,0.369165]
[1641416196992,0.29782,43957.0,43953.0,0.34819015]
[1641416197195,0.71422478,43958.0,43953.0,0.34819015]
[1641416197593,0.015,43958.0,43957.0,0.32283171]
[1641416197801,0.015,43958.0,43957.0,0.59372067]
[1641416197992,0.015,43958.0,43957.0,0.27088896]
[1641416198594,0.71275474,43964.0,43957.0,0.27088896]
[1641416198798,0.71275474,43964.0,43949.0,0.26286071]
[1641416198799,0.29782,43963.0,43949.0,0.26286071]
[1641416199092,0.29782,43963.0,43951.0,0.50906559]
[1641416199093,0.99704478,43963.0,43951.0,0.50906559]
[1641416199293,0.056892,43962.0,43951.0,0.50906559]
[1641416199493,0.51399049,43956.0,43951.0,0.39529428]
[1641416199694,0.70022478,43963.0,43948.0,0.23970606]
[1641416199894,0.33952,43962.0,43949.0,0.24307865]
[1641416200534,0.69922478,43960.0,43949.0,0.24307865]
[1641416200731,0.60631478,43960.0,43957.0,0.26212174]
[1641416201334,0.61231478,43960.0,43957.0,0.26212174]
[1641416201730,0.61231478,43960.0,43958.0,0.40516645]
[1641416201932,0.61231478,43960.0,43957.0,0.26212174]
[1641416202133,0.006,43960.0,43957.0,0.26212174]
[1641416202531,0.01352996,43964.0,43957.0,0.26212174]
[1641416202935,0.00852996,43964.0,43957.0,0.26212174]
[1641416203232,0.01252996,43964.0,43957.0,0.49788588]
[1641416203431,0.01252996,43964.0,43957.0,0.26212174]
[1641416203633,0.01252996,43964.0,43959.0,0.1]
[1641416203836,0.01252996,43964.0,43963.0,3.33561512]
[1641416204032,0.94314543,43973.0,43963.0,3.33561512]
[1641416204033,0.94314543,43973.0,43972.0,0.63888643]
[1641416204291,0.94314543,43973.0,43968.0,0.00124933]
[1641416204494,0.94314543,43973.0,43969.0,0.369165]
[1641416204693,0.94314543,43981.0,43970.0,0.64762108]
[1641416204893,0.94314543,43981.0,43970.0,0.44948759]
[1641416205293,0.004,43981.0,43970.0,0.005]
[1641416205497,0.55217937,43976.0,43971.0,0.00012924]
[1641416206091,0.29782,43975.0,43971.0,0.00012924]
[1641416206493,0.056874,43974.0,43971.0,0.00012924]
[1641416206695,0.29782,43973.0,43971.0,0.00012924]
[1641416207296,2.85353558,43972.0,43971.0,0.00012924]
[1641416207492,2.85353558,43972.0,43945.0,4.997678]
[1641416207493,2.85353558,43972.0,43946.0,0.00132864]
[1641416207694,0.056897,43960.0,43946.0,0.11010711]
[1641416207893,0.04295567,43959.0,43945.0,0.42033]
[1641416208141,0.04295567,43959.0,43945.0,0.00033]
[1641416208536,0.056903,43957.0,43945.0,0.00033]
[1641416208737,0.056902,43953.0,43950.0,0.25361468]
[1641416209135,0.0417,43956.0,43951.0,0.369165]
[1641416209336,0.006,43953.0,43950.0,0.25361468]
[1641416209536,0.006,43953.0,43952.0,0.30519901]
[1641416209743,0.006,43953.0,43952.0,0.67436401]
[1641416209940,1.63782,43952.0,43943.0,0.00011]
[1641416210140,0.29782,43952.0,43943.0,0.00011]
[1641416210337,0.006,43953.0,43943.0,0.00011]
[1641416210537,0.23400545,43958.0,43943.0,0.00011]
[1641416210744,0.00124464,43959.0,43943.0,0.00011]
[1641416210937,0.113802,43957.0,43948.0,0.27289113]
[1641416211143,0.51633279,43953.0,43944.0,1.03076116]
[1641416211338,0.51633279,43953.0,43943.0,0.01711]
[1641416211542,0.51835137,43952.0,43943.0,0.01711]
[1641416211783,0.00122592,43948.0,43943.0,0.01711]
[1641416211983,0.056912,43946.0,43943.0,0.01711]
[1641416212480,0.056912,43946.0,43943.0,0.00011]
[1641416212481,0.29782,43945.0,43943.0,0.00011]
[1641416212681,0.056912,43946.0,43943.0,0.00011]
[1641416212882,0.155514,43952.0,43943.0,0.00011]
[1641416213084,0.0417,43952.0,43943.0,0.00011]
[1641416213287,0.008,43946.0,43943.0,0.00011]
[1641416213481,0.008,43946.0,43944.0,0.94259619]
[1641416213684,0.008,43946.0,43945.0,0.23563559]
[1641416214482,0.056904,43950.0,43945.0,0.23563559]
[1641416214782,0.0417,43952.0,43943.0,0.00011]
[1641416215538,0.00122833,43951.0,43943.0,0.00011]
[1641416215732,0.90620237,43950.0,43943.0,0.00011]
[1641416216732,0.056907,43948.0,43944.0,0.00014477]
[1641416217433,0.064907,43948.0,43944.0,0.00014477]
[1641416217632,0.064907,43948.0,43947.0,0.5450836]
[1641416218131,0.064907,43948.0,43946.0,0.28966001]
[1641416218332,0.064907,43948.0,43944.0,0.00014477]
[1641416218537,0.29782,43947.0,43944.0,0.00014477]
[1641416218934,0.69845743,43956.0,43944.0,0.00014477]
[1641416219385,0.005,43947.0,43944.0,0.00014477]
[1641416219582,0.005,43947.0,43945.0,0.369165]
[1641416219788,0.005,43947.0,43946.0,1.34542934]
[1641416219789,0.0001,43947.0,43946.0,1.34542934]
[1641416219988,0.0001,43947.0,43946.0,1.71459434]
[1641416220183,0.0001,43947.0,43946.0,1.38512823]
[1641416220582,0.69845743,43955.0,43946.0,0.95939979]
[1641416220784,0.6110446,43956.0,43944.0,0.00014477]
[1641416220985,0.29782,43955.0,43944.0,0.00014477]
[1641416221188,0.29782,43955.0,43945.0,0.33947904]
[1641416221389,0.001,43956.0,43945.0,0.33947904]
[1641416221584,0.056901,43951.0,43944.0,0.00014477]
[1641416221786,0.29782,43950.0,43945.0,0.23760622]
[1641416221984,0.29782,43949.0,43938.0,0.0012054]
[1641416222285,0.113808,43953.0,43943.0,0.47490465]
[1641416222485,0.29782,43952.0,43943.0,0.47433779]
[1641416222787,0.69845743,43955.0,43943.0,0.47433779]
[1641416223037,0.69845743,43955.0,43943.0,0.57433779]
[1641416223432,0.69845743,43955.0,43943.0,0.47433779]
[1641416223736,0.29782,43954.0,43943.0,0.8685566]
[1641416223933,0.056904,43949.0,43943.0,0.8685566]
[1641416224332,0.056904,43949.0,43944.0,0.00125304]
[1641416224632,0.056904,43949.0,43944.0,0.31525463]
[1641416225236,0.170713,43952.0,43945.0,1.43]
[1641416225439,0.47085343,43954.0,43949.0,2.31]
[1641416225634,0.94314543,43962.0,43961.0,0.00127921]
[1641416226034,0.02366236,43987.0,43961.0,0.00127921]
[1641416226035,0.94314543,43968.0,43961.0,0.00127921]
[1641416226242,0.94314543,43968.0,43967.0,0.29938221]
[1641416226433,0.94314543,43968.0,43959.0,0.37352663]
[1641416226434,0.94314543,43968.0,43954.0,0.1]
[1641416226636,0.94314543,43968.0,43957.0,0.00121388]
[1641416226885,1.55110455,43975.0,43961.0,0.22747865]
[1641416226886,0.00123018,43973.0,43961.0,0.22747865]
[1641416227088,0.29782,43972.0,43961.0,0.22747865]
[1641416227288,0.64609978,43964.0,43955.0,0.27055542]
[1641416227487,0.64609978,43964.0,43961.0,0.014]
[1641416227686,0.00223018,43973.0,43961.0,0.014]
[1641416228087,0.29782,43972.0,43961.0,0.014]
[1641416228489,0.29782,43972.0,43961.0,0.07087751]
[1641416228490,0.32319685,43972.0,43961.0,0.07087751]
[1641416228688,0.32319685,43972.0,43961.0,0.58576358]
[1641416228991,0.00123018,43973.0,43962.0,0.369165]
[1641416229389,0.00126541,43967.0,43961.0,0.02]
[1641416229587,0.29782,43966.0,43961.0,0.02]
[1641416229787,0.29782,43966.0,43963.0,0.00125252]
[1641416230188,0.00126541,43967.0,43963.0,0.00125252]
[1641416230388,2.89226673,43964.0,43963.0,0.00125252]
[1641416230640,2.94226673,43964.0,43963.0,0.00125252]
[1641416230842,2.89226673,43964.0,43963.0,0.00125252]
[1641416231239,2.6659618,43964.0,43963.0,0.00125252]
[1641416231437,2.6779618,43964.0,43963.0,0.00125252]
[1641416231644,2.7279618,43964.0,43963.0,0.00125252]
[1641416232040,2.72917347,43964.0,43963.0,0.00125252]
[1641416232239,3.92417347,43964.0,43963.0,0.00125252]
[1641416232444,4.06587346,43964.0,43963.0,0.00125252]
[1641416232742,0.00123998,43959.0,43958.0,0.00011655]
[1641416232942,3.28255491,43959.0,43958.0,0.00011655]
[1641416233143,3.28255491,43959.0,43945.0,0.01357477]
[1641416233144,4.82745491,43959.0,43945.0,0.01357477]
[1641416233345,0.00121363,43946.0,43945.0,0.01357477]
[1641416233545,2.35330766,43946.0,43945.0,0.01357477]
[1641416233746,2.41073363,43946.0,43945.0,0.01357477]
[1641416233946,0.39765663,43946.0,43945.0,0.01357477]
[1641416234289,0.29782,43946.0,43940.0,0.58719016]
[1641416234485,0.01357538,43953.0,43939.0,0.01357538]
[1641416234686,0.01357538,43953.0,43945.0,0.29777558]
[1641416235386,0.01357538,43953.0,43939.0,0.01357538]
[1641416235387,0.29782,43952.0,43939.0,0.01357538]
[1641416235584,0.29782,43952.0,43946.0,0.54849269]
[1641416235785,0.29782,43952.0,43946.0,0.54794623]
[1641416235786,0.70348325,43952.0,43946.0,0.54794623]
[1641416235987,0.70348325,43952.0,43939.0,0.01357538]
[1641416235988,0.08150553,43946.0,43939.0,0.01357538]
[1641416236290,1.0030775,43940.0,43936.0,0.00022]
[1641416236492,1.09782,43937.0,43936.0,0.00022]
[1641416236686,0.82782,43937.0,43936.0,0.00022]
[1641416237103,0.29782,43937.0,43936.0,0.00022]
[1641416237486,0.0052124,43937.0,43936.0,0.00022]
[1641416237887,0.0052124,43937.0,43936.0,0.23022]
[1641416238138,0.0052124,43937.0,43936.0,0.23143615]
[1641416238339,0.0052124,43937.0,43936.0,0.60060115]
[1641416238737,0.0012124,43937.0,43936.0,0.599385]
[1641416239541,0.0012124,43937.0,43936.0,0.86973452]
[1641416239737,0.0012124,43937.0,43936.0,0.599385]
[1641416241437,0.0012124,43937.0,43936.0,0.23022]
[1641416241636,0.0009924,43937.0,43936.0,0.599385]
[1641416242088,0.0009924,43937.0,43936.0,0.669385]
[1641416243385,0.40233226,43946.0,43936.0,0.669385]
[1641416243386,0.07650553,43946.0,43936.0,0.869385]
[1641416243586,0.07650553,43946.0,43940.0,0.11378791]
[1641416243786,0.07650553,43946.0,43941.0,0.63205602]
[1641416243987,0.07650553,43946.0,43945.0,2.679165]
[1641416244290,0.69488223,43957.0,43956.0,2.59377153]
[1641416244489,0.69488223,43957.0,43956.0,3.24029589]
[1641416244691,0.94314543,43965.0,43964.0,0.60908075]
[1641416245286,1.06699066,43972.0,43964.0,0.60908075]
[1641416245287,0.94314543,43972.0,43964.0,0.60908075]
[1641416245551,0.005,43965.0,43959.0,0.00127848]
[1641416245746,0.005,43965.0,43951.0,0.2882703]
[1641416245747,0.005,43965.0,43953.0,0.05815632]
[1641416245944,0.00626505,43965.0,43953.0,0.05815632]
[1641416246245,0.00626505,43965.0,43953.0,0.056891]
[1641416246445,0.005,43965.0,43961.0,0.59920955]
[1641416246644,0.5988933,43970.0,43960.0,0.32395961]
[1641416246844,0.29782,43969.0,43959.0,0.056882]
[1641416247046,0.00124857,43971.0,43956.0,0.0012506]
[1641416247645,0.00124857,43971.0,43959.0,0.056877]
[1641416247847,0.00124857,43971.0,43963.0,0.11375242]
[1641416248048,0.94314543,43973.0,43968.0,0.28666335]
[1641416248247,0.94314543,43975.0,43968.0,0.28666335]
[1641416248446,0.94314543,43975.0,43968.0,0.19817518]
[1641416248848,0.94314543,43975.0,43970.0,0.056869]
[1641416249046,0.94314543,43975.0,43972.0,0.59957827]
[1641416249484,0.94314543,43982.0,43972.0,0.59957827]
[1641416249792,0.94314543,43982.0,43974.0,0.00126716]
[1641416249985,0.94314543,43982.0,43979.0,0.00125278]
[1641416250190,0.29782,43981.0,43979.0,0.00125278]
[1641416250385,0.29782,43981.0,43969.0,9.795e-05]
[1641416250386,0.21602649,43981.0,43969.0,9.795e-05]
[1641416250586,0.29782,43980.0,43970.0,0.00226606]
[1641416250786,0.29782,43980.0,43969.0,9.795e-05]
[1641416251189,0.056874,43975.0,43969.0,9.795e-05]
[1641416251386,0.87836648,43974.0,43969.0,0.00409795]
[1641416251586,0.29782,43974.0,43969.0,0.00409795]
[1641416251785,0.116748,43980.0,43969.0,0.00409795]
[1641416251986,0.28267648,43977.0,43969.0,0.00409795]
[1641416252187,0.00121486,43971.0,43969.0,0.00409795]
[1641416252392,2.64952,43970.0,43969.0,0.00409795]
[1641416252589,2.69962,43970.0,43969.0,0.00409795]
[1641416252789,2.64962,43970.0,43969.0,9.795e-05]
[1641416253044,3.36756916,43970.0,43969.0,9.795e-05]
[1641416253437,3.37256916,43970.0,43969.0,9.795e-05]
[1641416253741,3.42946016,43970.0,43969.0,9.795e-05]
[1641416253938,4.57446016,43970.0,43969.0,9.795e-05]
[1641416254139,0.00015439,43967.0,43963.0,0.01357461]
[1641416254342,4.62446016,43970.0,43941.0,0.11379]
[1641416254343,0.39781999,43964.0,43941.0,0.11379]
[1641416254539,0.39781999,43964.0,43936.0,0.07022]
[1641416254540,0.00120921,43947.0,43936.0,0.07022]
[1641416254739,0.05691865,43943.0,43936.0,0.07022]
[1641416254944,0.64702198,43942.0,43936.0,0.07022]
[1641416255141,0.00129736,43940.0,43936.0,0.07022]
[1641416255340,0.33952,43939.0,43936.0,0.07022]
[1641416255540,0.33952,43939.0,43936.0,0.08022]
[1641416255740,0.056925,43938.0,43936.0,0.08022]
[1641416256781,0.056925,43938.0,43936.0,0.07022]
[1641416257587,0.059925,43938.0,43936.0,0.07022]
[1641416258884,0.056925,43938.0,43936.0,0.07022]
[1641416259087,0.00121909,43940.0,43936.0,0.07022]
[1641416259286,0.056917,43941.0,43936.0,0.07022]
[1641416259485,0.003,43938.0,43937.0,0.71012104]
[1641416259785,0.003,43938.0,43937.0,1.07928604]
[1641416259984,0.003,43938.0,43937.0,1.40917473]
[1641416260384,0.003,43938.0,43937.0,0.69917473]
[1641416260639,0.00127213,43948.0,43937.0,0.69917473]
[1641416260840,0.00127213,43948.0,43945.0,0.58664731]
[1641416261039,0.846911,43946.0,43936.0,0.07022]
[1641416261239,0.29782,43945.0,43936.0,0.07022]
[1641416261442,0.00128888,43941.0,43936.0,0.07022]
[1641416261640,0.96,43937.0,43936.0,0.07022]
[1641416261838,0.29782,43937.0,43936.0,0.07022]
[1641416262041,0.29782,43937.0,43936.0,0.60026926]
[1641416262240,0.74931534,43944.0,43936.0,0.73026926]
[1641416262440,0.74931534,43944.0,43936.0,0.48026926]
[1641416262441,0.69931534,43938.0,43936.0,0.48026926]
[1641416262643,0.29782,43937.0,43936.0,0.48026926]
[1641416262846,0.69931534,43938.0,43936.0,0.48026926]
[1641416263043,0.92999306,43947.0,43939.0,0.2]
[1641416263243,0.92999306,43947.0,43944.0,0.64242878]
[1641416263244,0.92873302,43947.0,43944.0,0.64242878]
[1641416263445,0.0999,43956.0,43944.0,0.44242878]
[1641416263446,0.92873302,43949.0,43944.0,0.44242878]
[1641416263745,0.29782,43948.0,43944.0,0.44242878]
[1641416264043,0.29782,43948.0,43936.0,0.11379568]
[1641416264294,0.056906,43949.0,43936.0,0.50842116]
[1641416264495,0.056906,43949.0,43936.0,0.33773748]
[1641416264694,0.056906,43949.0,43940.0,0.65265575]
[1641416264894,0.72263003,43949.0,43940.0,1.07102534]
[1641416265095,0.77954047,43949.0,43940.0,0.42336959]
[1641416265294,0.056911,43945.0,43940.0,0.42336959]
[1641416265498,0.003,43949.0,43940.0,0.42336959]
[1641416266495,0.0599109,43949.0,43940.0,0.89365637]
[1641416266894,0.05691,43945.0,43940.0,0.89365637]
[1641416267094,0.113822,43949.0,43940.0,0.89365637]
[1641416267294,0.00129685,43951.0,43940.0,0.89365637]
[1641416267495,0.002,43945.0,43940.0,0.89365637]
[1641416267896,0.058911,43945.0,43942.0,0.31602046]
[1641416268141,0.002,43945.0,43940.0,0.89365637]
[1641416268736,0.05820565,43951.0,43940.0,0.47028678]
[1641416269037,0.522827,43949.0,43940.0,0.47028678]
[1641416269239,0.29782,43948.0,43940.0,0.47028678]
[1641416269536,0.29782,43948.0,43940.0,0.47228678]
[1641416270339,0.29782,43948.0,43941.0,0.00010345]
[1641416270537,0.056918,43945.0,43941.0,0.00010345]
[1641416270742,0.003,43949.0,43941.0,0.00010345]
[1641416270936,0.00129685,43951.0,43941.0,0.00010345]
[1641416271340,0.24706102,43954.0,43941.0,0.00010345]
[1641416271539,0.056908,43948.0,43941.0,0.00210345]
[1641416271790,0.22139815,43947.0,43941.0,0.00210345]
[1641416271989,0.29782,43946.0,43941.0,0.00210345]
[1641416272591,0.05692,43944.0,43942.0,0.49774446]
[1641416272790,0.29782,43943.0,43942.0,0.49774446]
[1641416272990,0.05692,43944.0,43941.0,0.00010345]
[1641416273192,0.29782,43943.0,43941.0,0.00010345]
[1641416274693,2.02782,43942.0,43941.0,0.00010345]
[1641416275093,0.29782,43942.0,43941.0,0.00010345]
[1641416275293,0.99870985,43942.0,43941.0,0.00010345]
[1641416275550,1.00170985,43942.0,43941.0,0.00210345]
[1641416276147,0.30082,43942.0,43941.0,0.00210345]
[1641416276545,0.30082,43942.0,43939.0,0.36099065]
[1641416276746,0.70088985,43943.0,43936.0,0.53773511]
[1641416277546,0.002,43943.0,43936.0,0.54073511]
[1641416277745,0.002,43943.0,43937.0,0.2]
[1641416277946,0.002,43943.0,43938.0,0.29180342]
[1641416278650,0.002,43943.0,43937.0,0.38127311]
[1641416279495,0.70088985,43949.0,43937.0,0.58127311]
[1641416279698,0.70088985,43949.0,43937.0,0.5824804]
[1641416280297,0.70088985,43949.0,43941.0,0.28410486]
[1641416280500,0.70088985,43949.0,43948.0,0.35855009]
[1641416280697,0.29782,43949.0,43948.0,0.35855009]
[1641416281400,0.29782,43949.0,43948.0,0.487352]
[1641416281401,0.72782,43949.0,43948.0,0.487352]
[1641416281597,0.73582,43949.0,43948.0,0.487352]
[1641416281799,0.29782,43948.0,43940.0,0.30093741]
[1641416282196,0.008,43949.0,43940.0,0.35783741]
[1641416282398,0.70888985,43949.0,43938.0,0.11388999]
[1641416282697,0.29782,43948.0,43938.0,0.53076918]
[1641416282900,0.51085306,43948.0,43938.0,9.499e-05]
[1641416283175,0.00122939,43941.0,43938.0,9.499e-05]
[1641416283366,0.0417,43947.0,43938.0,9.499e-05]
[1641416283569,0.63096376,43946.0,43938.0,0.00209499]
[1641416283766,0.26083186,43943.0,43940.0,0.65250979]
[1641416283971,0.29782,43942.0,43940.0,0.65250979]
[1641416284168,1.44473885,43941.0,43940.0,0.65250979]
[1641416284371,0.70088985,43941.0,43940.0,0.65250979]
[1641416284568,0.70088985,43941.0,43940.0,0.98077798]
[1641416284867,0.70088985,43941.0,43940.0,1.54994298]
[1641416285269,8.985e-05,43942.0,43940.0,2.97994298]
[1641416285466,8.985e-05,43942.0,43941.0,1.979165]
[1641416285665,8.985e-05,43942.0,43941.0,0.369165]
[1641416285866,8.985e-05,43942.0,43940.0,0.65550979]
[1641416286267,0.01353031,43947.0,43940.0,0.65550979]
[1641416286885,0.056908,43945.0,43940.0,0.65250979]
[1641416287685,0.002,43945.0,43940.0,0.65550979]
[1641416288486,0.002,43945.0,43942.0,0.2829734]
[1641416288687,0.002,43945.0,43940.0,0.65550979]
[1641416288888,0.00121223,43945.0,43940.0,0.65250979]
[1641416289288,0.00121223,43945.0,43941.0,0.426067]
[1641416289689,0.00321223,43945.0,43941.0,0.526067]